[Event "8th Montevideo Open 2025"]
[Site "Montevideo"]
[Date "2025.02.02"]
[Round "3.13"]
[White "Milat, Marcel"]
[Black "Pizarro, Nick"]
[Result "1-0"]
[Annotator "TA"]
[ECO "D12"]
[WhiteElo "2190"]
[BlackElo "1594"]
[PlyCount "55"]
[EventDate "2025.02.01"]
[EventType "swiss"]
[EventCountry "URU"]
[SourceTitle "playchess.com"]
[Source "ChessBase"]
[SourceQuality "1"]
[TimeControl "5400+30"]

{[%evp 15,55,15,18,18,36,35,47,24,28,23,47,18,29,5,26,34,82,63,62,14,75,76,79,83,101,86,110,60,155,147,363,326,320,287,425,425,425,425,425,425,416,408]} 1. Nf3 {[%emt 0:00:07]} Nf6 {[%emt 1:31:00]} 2. c4 {[%emt 1:31:23]} c6 {[%emt 0:00:00]} 3. d4 {[%emt 0:00:00]} d5 {[%emt 0:00:00]} 4. e3 {[%emt 0:00:00]} Bf5 {[%emt 0:00:00]} 5. Nc3 {[%emt 0:00:00]} e6 {[%emt 0:00:00]} 6. Nh4 {[%emt 0:00:00]} Bg6 {[%emt 0:00:00]} 7. Qb3 {[%emt 0:00:00]} Qb6 {[%emt 0:00:00]} 8. Nxg6 {[%emt 0:00:00]} hxg6 {[%emt 0:00:00]} 9. Bd2 {[%emt 0:00:00]} Qxb3 {[%emt 0:00:00]} 10. axb3 {[%emt 0:00:00]} Nbd7 {[%emt 0:00:00]} 11. g3 {[%emt 0:00:00] White is slightly better.} Be7 {[%emt 0:00:00]} 12. Bg2 a6 {[%emt 0:00:00]} 13. Rc1 {[%emt 0:00:00]} Bb4 {[%emt 0:00:00]} 14. O-O {[%emt 0:00:00]} O-O-O {[%emt 0:00:00]} 15. Rc2 {[%emt 0:00:00]} Bxc3 {[%emt 0:00:00]} (15... a5 $14 {was preferrable.}) 16. Bxc3 {[%emt 0:00:00]} Kb8 {[%emt 0:07:30]} 17. Rd1 {[%emt 0:00:00]} (17. f3 $14) 17... Rh5 {[%emt 0:00:00]} (17... g5 $11 {keeps the balance.}) 18. f3 $16 {[%emt 0:00:00]} Rdh8 {[%emt 0:00:00]} 19. h3 {[%emt 0:00:00]} Re8 {[%emt 0:00:00]} 20. g4 {[%emt 0:00:00]} Rh7 {[%emt 0:00:00]} 21. Kf2 {[%emt 0:00:00]} ({White should play} 21. e4 $16) 21... b5 {[%emt 0:00:00]} ({Better is} 21... g5 $14) 22. Bb4 {[%emt 0:00:00] [#] And now g5 would win.} Rhh8 $2 {[%emt 0:00:00] Black cannot hold the game after this.} (22... Kb7 $16 23. g5 Nh5) 23. cxb5 {[%emt 0:00:00]} cxb5 {[%emt 0:00:00]} 24. Rdc1 {[%emt 0:00:00]} Rc8 {[%emt 0:00:00]} (24... Nb6 $142 25. Rc6 Nfd7) 25. Bd6+ $18 {[%emt 0:00:00]} Kb7 {[%emt 0:00:00]} 26. Rc7+ {[%emt 0:00:00]} Rxc7 {[%emt 0:00:00]} 27. Rxc7+ {[%emt 0:00:00]} (27. Bxc7 $2 {too greedy.} Rc8 28. Kf1 Rxc7 $19) 27... Kb6 {[%emt 0:00:00]} 28. g5 {[%emt 0:00:00] Weighted Error Value: White=0.15 (very precise) /Black=0.45.  Loses game:     	---       	Black=1      Mistake:       	White=2     	Black=4      Inaccurate:     	White=1     	---        OK:         	White=5     	Black=1      Best:        	White=2     	Black=2} 1-0

[Event "8th Montevideo Open 2025"]
[Site "Montevideo"]
[Date "2025.02.02"]
[Round "3.14"]
[White "Roselli Mailhe, Bernardo"]
[Black "Barandiaran, Gabriel"]
[Result "1-0"]
[Annotator "TA"]
[ECO "D38"]
[WhiteElo "2342"]
[BlackElo "1830"]
[PlyCount "61"]
[EventDate "2025.02.01"]
[EventType "swiss"]
[EventCountry "URU"]
[SourceTitle "playchess.com"]
[Source "ChessBase"]
[SourceQuality "1"]
[TimeControl "5400+30"]

{[%evp 10,61,18,24,26,26,26,17,66,66,56,64,59,62,62,60,73,72,86,89,96,81,96,100,137,127,142,137,135,129,137,118,178,156,164,56,70,68,84,74,308,297,295,289,422,408,479,448,442,437,1313,1332,1089,906]} 1. d4 {[%emt 0:00:04]} Nf6 {[%emt 0:01:24]} 2. c4 {[%emt 0:00:04]} e6 {[%emt 0:00:04]} 3. Nf3 {[%emt 0:00:05]} d5 {[%emt 0:00:30]} 4. Nc3 {[%emt 0:00:30]} Bb4 {[%emt 0:00:58]} 5. Qa4+ {[%emt 0:00:00]} Nc6 {[%emt 0:00:30]} 6. e3 {[%emt 0:00:13]} Bd7 {[%emt 0:00:30][%cal Oc6d4] [#] aiming for ...Nxd4!. D38: Queen's Gambit Declined: Ragozin Defence (4 Nf3 Bb4).} 7. Qc2 {[%emt 0:00:30]} O-O {[%emt 0:00:30]} 8. Bd2 {[%emt 0:00:30]} Qe7 {[%emt 0:12:49]} (8... dxc4 $11 {is more appropriate.} 9. Bxc4 Bd6) 9. a3 $14 {[%emt 0:01:03]} Bxc3 {[%emt 0:00:20]} 10. Bxc3 {[%emt 0:00:26]} Ne4 {[%emt 0:00:29]} 11. Bd3 {[%emt 0:02:52]} f5 {[%emt 0:00:30]} 12. b4 {[%emt 0:00:30][%cal Bb2b4,Bb4b5][%mdl 32]} Nxc3 {[%emt 0:00:30]} 13. Qxc3 {[%emt 0:00:30]} Be8 $146 {[%emt 0:00:30]} (13... Rac8 14. O-O Rf6 15. b5 Nd8 16. Qa5 b6 17. Qxa7 Rh6 18. c5 Nf7 19. cxb6 cxb6 {1-0 Risting,E (2298)-Coote,T (2075) London Classic op 11th 2019 (2)}) 14. b5 {[%emt 0:00:30]} Nd8 {[%emt 0:00:30]} 15. O-O {[%emt 0:00:30]} Bh5 {[%emt 0:00:30]} 16. Ne5 {[%emt 0:00:30]} Nf7 {[%emt 0:00:30]} 17. cxd5 {[%emt 0:00:30] White is more active.} Nxe5 {[%emt 0:00:30]} 18. dxe5 {[%emt 0:00:30]} exd5 {[%emt 0:00:30]} 19. Rfc1 {[%emt 0:00:30]} Rac8 {[%emt 0:00:30]} 20. Qd4 {[%emt 0:00:30][%csl LRa7,LRd5]} Kh8 {[%emt 0:00:30]} (20... c6 $16 {was necessary.} 21. bxc6 (21. Qxa7 Qxe5 22. Qxb7 c5 $16) 21... bxc6) 21. f4 {[%emt 0:00:30]} (21. Qxd5 Rcd8 22. Qc4 Qxe5 $16) 21... c6 {[%emt 0:00:30]} 22. a4 {[%emt 0:00:30]} (22. Qxa7 $18 {aiming for bxc6.} c5 23. Kh1) 22... c5 {[%emt 0:00:30]} 23. Qxd5 {[%emt 0:00:30]} c4 $1 {[%emt 0:00:30]} 24. Bxc4 {[%emt 0:00:30] [#]} (24. Rxc4 Rcd8 25. Qc5 Qxc5 26. Rxc5 Rxd3 $17) 24... Rfd8 $2 {[%emt 0:00:30] Loses the game.} (24... Rcd8 $16 25. Qe6 Qc5) 25. Qe6 $18 {[%emt 0:00:30]} Qc5 {[%emt 0:00:30]} 26. Rc3 {[%emt 0:00:30]} ({Not} 26. Qxf5 Qxe3+ (26... Be2 27. Qe4 $17) 27. Kh1 Be2 $17) 26... Rc7 {[%emt 0:00:30]} (26... Bg6 $142 27. Rac1 Qb4) 27. Rac1 {[%emt 0:00:30][%cal Oc4e2]} ({Much less strong is} 27. Qxf5 Bg6 28. Qg4 Bf7 $18) 27... Bf7 {[%emt 0:00:30]} 28. Qxf7 {[%emt 0:00:30] White is clearly winning.} Rxf7 {[%emt 0:00:30]} 29. Bxf7 {[%emt 0:00:30]} Qb4 {[%emt 0:00:30]} (29... Qf8 $142) 30. Rc8 {[%emt 0:00:30]} Qd2 {[%emt 0:00:30]} 31. Be6 {[%emt 0:00:30] Weighted Error Value: White=0.10 (very precise) /Black=0.45  Loses game:     	---       	Black=1      Mistake:       	White=1     	Black=4      Inaccurate:     	---       	Black=1      OK:         	White=10    	Black=6      Best:        	White=3     	Black=1      Strong:       	---       	Black=1} 1-0

[Event "8th Montevideo Open 2025"]
[Site "Montevideo"]
[Date "2025.02.02"]
[Round "3.15"]
[White "de los Reyes, Mauro"]
[Black "Mussanti, Diego"]
[Result "1-0"]
[Annotator "TA"]
[ECO "B01"]
[WhiteElo "1849"]
[BlackElo "2173"]
[PlyCount "62"]
[EventDate "2025.02.01"]
[EventType "swiss"]
[EventCountry "URU"]
[SourceTitle "playchess.com"]
[Source "ChessBase"]
[SourceQuality "1"]
[TimeControl "5400+30"]

{[%evp 9,62,16,6,-125,-132,-123,-67,-71,-68,-112,-103,-130,-127,-362,-109,-139,-140,-156,-127,-177,-152,-200,-134,-133,-117,-140,-130,-191,-194,-258,-258,-280,-163,-181,-183,-181,-128,-134,-124,-142,-135,-840,-841,-827,-791,-1529,-717,-1433,-776,-29992,-29993,-29993,-29994,-29994,-29995]} 1. e4 {[%emt 0:04:26]} d5 {[%emt 0:00:14]} 2. exd5 {[%emt 0:00:10]} Qxd5 {[%emt 0:00:05]} 3. d4 {[%emt 0:00:21]} Nc6 {[%emt 1:31:41]} 4. Be3 {[%emt 0:01:17]} e5 {[%emt 0:00:00]} 5. c4 {[%emt 0:05:54]} Qa5+ {[%emt 0:00:00]} 6. Nc3 {[%emt 0:01:17] B01: Scandinavian Defence.} (6. Bd2 $11 {was the only way to keep the balance.} Bb4 7. d5) 6... exd4 $17 {[%emt 0:00:00]} 7. Bxd4 {[%emt 0:00:09]} Nxd4 {[%emt 0:00:00]} (7... Bf5 $1 $17 8. Be3 Nf6) 8. Qxd4 $15 {[%emt 0:00:08] Black is slightly better.} Nf6 {[%emt 0:00:00]} 9. Bd3 {[%emt 0:03:15]} Be6 $146 {[%emt 0:00:00]} (9... Bc5 10. Qh4 Bg4 11. f3 O-O-O 12. O-O-O Rxd3 13. Rxd3 Bf5 14. Ne4 Be7 15. Qf4 g5 {0-1 Grussova,H (1997)-Ksana,V (2106) Teplice op 8th 2013 (8)}) 10. O-O-O {[%emt 0:01:23]} Rd8 {[%emt 0:00:00]} 11. Qh4 {[%emt 0:02:44] [#]} (11. Qf4 $17) 11... Be7 $2 {[%emt 0:00:00]} (11... g5 $1 $19 {[%cal Rg5h4] and Black stays clearly on top.} 12. Qg3 Bd6) 12. Qg3 {[%emt 0:01:04]} O-O {[%emt 0:00:00]} 13. Nge2 {[%emt 0:01:11]} Qb4 {[%emt 0:00:00]} 14. Qh4 {[%emt 0:05:50]} (14. a3 $17 Qa5 15. Nb5) 14... g6 {[%emt 0:00:00]} 15. Qf4 {[%emt 0:01:50]} (15. a3 $17 Qa5 16. Qg3) 15... Nh5 {[%emt 0:00:00]} 16. Qe3 {[%emt 0:01:35]} Rfe8 {[%emt 0:00:00]} (16... Bxc4 $6 17. a3 (17. Bxc4 Qxc4 18. g4 Ng7 $17) 17... Rxd3 (17... Bc5 18. Qg5 $16) 18. Rxd3 $14) 17. a3 {[%emt 0:01:13]} Qa5 {[%emt 0:00:00]} 18. Qf3 {[%emt 0:03:17]} (18. Kb1 $17 {might work better.}) 18... Nf6 $19 {[%emt 0:00:00]} 19. h3 {[%emt 0:01:04]} (19. Bc2 $142) 19... Nd7 {[%emt 0:08:00]} 20. Nd5 {[%emt 0:12:51]} Bg5+ {[%emt 0:00:00]} (20... Bxd5 $142 21. cxd5 Ne5) 21. Kb1 {[%emt 0:04:01]} Ne5 {[%emt 0:00:00][%csl LRd5,LRf3]} 22. Qg3 {[%emt 0:02:42]} Nxd3 {[%emt 0:00:00]} (22... h6 $19 {and ...Nxd3 would now be decisive} 23. h4 Nxd3 (23... Bxd5 24. cxd5 Bd2 25. Be4 $15) 24. Rxd3 Bf5 (24... Bxd5 25. cxd5 Bf6 26. Qf3 $17) 25. hxg5 Rxe2) 23. Qxg5 $17 {[%emt 0:00:55] [#]} Rxd5 {[%emt 0:00:00]} (23... Nxf2 $2 24. Nf6+ Kg7 25. Nxe8+ (25. Qxa5 Rxd1+ 26. Rxd1 Kxf6 $18) 25... Rxe8 26. Qxa5 $18) 24. cxd5 {[%emt 0:01:13]} Nxf2 {[%emt 0:00:00]} 25. Qf4 {[%emt 0:00:57][%mdl 8192] White is weak on the light squares} (25. Nc3 $17) 25... Bf5+ $19 {[%emt 0:00:00]} (25... Nxd1 26. dxe6 Rxe6 27. Nd4 $11) 26. Ka1 {[%emt 0:01:28]} Nxd1 {[%emt 0:00:00]} 27. Nd4 {[%emt 0:01:37]} Ne3 {[%emt 0:00:00]} 28. Rc1 {[%emt 0:01:32]} Qxd5 {[%emt 0:00:00]} 29. Re1 {[%emt 0:03:19]} Nc2+ {[%emt 0:00:00] Black mates.} ({And not} 29... Nxg2 30. Rxe8+ Kg7 31. Nxf5+ (31. Qxc7 $2 {is the wrong capture.} Qxd4 32. Qe5+ Qxe5 $19) 31... Qxf5 32. Qxc7 $16) 30. Nxc2 {[%emt 0:00:30]} Rxe1+ {[%emt 0:00:00]} 31. Nxe1 {[%emt 0:00:29]} Qd1+ {[%emt 0:00:00][%mdl 32768] Weighted Error Value: White=1.36/Black=0.63 Loss on time!?  Loses game:     	White=2     	---        Missed win:     	---       	Black=1      Mistake:       	White=4     	Black=3      Inaccurate:     	White=1     	Black=1      OK:         	White=4     	Black=10     Best:        	White=2     	Black=1} 1-0

[Event "8th Montevideo Open 2025"]
[Site "Montevideo"]
[Date "2025.02.02"]
[Round "3.16"]
[White "Martinez Garay, Carlos"]
[Black "Saralegui, Mario"]
[Result "0-1"]
[Annotator "TA"]
[ECO "C45"]
[WhiteElo "1838"]
[BlackElo "2034"]
[PlyCount "98"]
[EventDate "2025.02.01"]
[EventType "swiss"]
[EventCountry "URU"]
[SourceTitle "playchess.com"]
[Source "ChessBase"]
[SourceQuality "1"]
[TimeControl "5400+30"]

{[%evp 12,98,0,0,0,-14,20,-15,-6,-11,-12,-35,-29,-31,-29,-19,-12,-25,-12,-13,0,-16,0,0,0,-19,0,3,23,-22,-11,-28,-16,-30,7,-102,-3,-122,-114,-215,-212,-275,-241,-253,-222,-223,-214,-202,-210,-252,-241,-240,-246,-365,-366,-492,-497,-518,-503,-484,-454,-667,-685,-693,-615,-668,-548,-507,-534,-533,-363,-504,-493,-521,-517,-507,-446,-461,-446,-400,-392,-1380,-1259,-1496,-1131,-5620,-5106,-5110,-5106]} 1. e4 {[%emt 0:16:48]} e5 {[%emt 0:00:47]} 2. Nf3 {[%emt 0:00:13]} Nc6 {[%emt 0:00:22]} 3. d4 {[%emt 0:00:09]} exd4 {[%emt 0:00:30]} 4. Nxd4 {[%emt 0:00:13]} Bc5 {[%emt 0:01:31]} 5. Nxc6 {[%emt 0:02:21]} Qf6 {[%emt 0:00:12]} 6. Qd2 {[%emt 0:01:44]} dxc6 {[%emt 0:00:18]} 7. Bd3 {[%emt 0:00:29]} Ne7 {[%emt 0:00:36] C45: Scotch Game.} 8. O-O {[%emt 0:00:38]} O-O {[%emt 0:00:28]} 9. Qg5 {[%emt 0:03:29]} Qxg5 {[%emt 0:01:26] The position is equal.} 10. Bxg5 {[%emt 0:00:14]} Ng6 {[%emt 0:00:07]} 11. a4 $146 {[%emt 0:04:37]} (11. Re1 Be6 12. Nd2 h6 13. Be3 Bxe3 14. Rxe3 Rad8 15. g3 Ne5 16. f4 Nxd3 17. cxd3 {1-0 Fetiveau,A (2039)-D'Antonio,N (2252) Lignano Bella Italia op 2nd 2023 (8)}) 11... h6 {[%emt 0:01:05]} 12. Bd2 {[%emt 0:00:19]} a5 {[%emt 0:00:09]} 13. Nc3 {[%emt 0:12:20]} Rd8 {[%emt 0:05:48]} 14. Rad1 {[%emt 0:06:45]} Bg4 {[%emt 0:01:52]} 15. Be2 {[%emt 0:47:41]} Be6 {[%emt 0:15:20]} 16. Kh1 {[%emt 0:00:00]} f6 {[%emt 0:04:49]} 17. f4 {[%emt 0:00:00]} Bf7 {[%emt 0:00:05]} 18. Bc1 {[%emt 0:00:00]} Bd6 {[%emt 0:05:04]} 19. g3 {[%emt 0:00:00]} Re8 {[%emt 0:00:53]} 20. Bd3 {[%emt 0:00:00]} Bb4 {[%emt 0:03:23]} 21. Bd2 {[%emt 0:00:00]} Rad8 {[%emt 0:00:15]} 22. Kg2 {[%emt 0:00:00]} c5 {[%emt 0:05:31]} 23. b3 {[%emt 0:00:00]} (23. Bb5 $11 c6 24. Be2) 23... Ne7 {[%emt 0:05:09] Black is much more active.} ({Black should play} 23... Bxb3 $17 {White must now prevent ...Bf7.} 24. Nd5 Bxd5 (24... Bxa4 25. Be1 $17) 25. exd5 Bxd2) 24. Bb5 {[%emt 0:00:00] [#]} (24. Be1 $11) 24... c6 $1 $17 {[%emt 0:13:21] Black continues to play with concentration.} (24... Rxd2+ 25. Rxd2 c6 (25... Bxc3 26. Bxe8 Bxd2 27. Bxf7+ Kxf7 28. Rd1 $11) 26. Bc4 Bxc3 (26... Bxc4 27. bxc4 Bxc3 28. Rd3 $16) 27. Rd3 $11) 25. Bd3 {[%emt 0:00:00] [#]} (25. Be2 $17) 25... Bxb3 $1 $19 {[%emt 0:04:07][%mdl 512]} 26. cxb3 {[%emt 0:00:00] Strongly threatening Be1.} (26. Bc1 Bf7) 26... Rxd3 {[%emt 0:00:09]} 27. Be1 {[%emt 0:00:00]} Red8 {[%emt 0:03:28]} 28. Rxd3 {[%emt 0:00:00]} Rxd3 {[%emt 0:00:03]} 29. Rf3 {[%emt 0:00:00]} Rd4 {[%emt 0:01:17]} 30. Re3 {[%emt 0:00:00]} Kf7 {[%emt 0:00:31]} 31. Ne2 {[%emt 0:00:00]} Rd1 {[%emt 0:01:55]} ({Not} 31... Bxe1 32. Nxd4 Bd2 33. Rd3 cxd4 34. Rxd2 $14) 32. Bxb4 {[%emt 0:00:00]} (32. Bf2 {keeps fighting.}) 32... axb4 {[%emt 0:00:09][%mdl 4096] Endgame KRN-KRN. Black is a pawn up.} 33. f5 {[%emt 0:00:00]} b5 {[%emt 0:01:28]} 34. axb5 {[%emt 0:00:00]} cxb5 {[%emt 0:00:02]} 35. Nf4 {[%emt 0:00:00]} Nc6 {[%emt 0:01:43]} 36. Rd3 {[%emt 0:01:49]} (36. Re2 $142) 36... Rxd3 {[%emt 0:00:57]} 37. Nxd3 {[%emt 0:00:05] KN-KN. Black is a pawn up.} c4 {[%emt 0:00:10]} 38. Nc1 {[%emt 0:03:04]} Nd4 {[%emt 0:01:47]} 39. Kf2 {[%emt 0:01:01] Prevents Ne2} Nxb3 {[%emt 0:00:29]} 40. Na2 {[%emt 0:00:18]} Nc5 {[%emt 0:02:15]} 41. Nxb4 {[%emt 0:00:43]} Nxe4+ {[%emt 0:00:29]} 42. Ke3 {[%emt 0:00:58]} Nd6 {[%emt 0:01:30]} 43. g4 {[%emt 0:01:56]} g6 {[%emt 0:01:48]} 44. fxg6+ {[%emt 0:02:13]} Kxg6 {[%emt 0:00:03]} 45. Kf4 {[%emt 0:00:58]} c3 {[%emt 0:01:17]} 46. h4 $2 {[%emt 0:00:20]} (46. Ke3) 46... h5 {[%emt 0:01:30] Black is clearly winning.} 47. Nc2 {[%emt 0:00:49]} Nc4 {[%emt 0:00:42]} 48. gxh5+ {[%emt 0:00:37]} Kxh5 {[%emt 0:00:03]} 49. Kf5 {[%emt 0:00:15] [#]} Na3 $1 {[%emt 0:00:51] Weighted Error Value: White=0.63/Black=0.18 (very precise)   Mistake:       	White=6     	Black=1      Inaccurate:     	White=3     	Black=3      OK:         	White=14    	Black=13     Best:        	White=2     	Black=3      Strong:       	---       	Black=1} 0-1

[Event "8th Montevideo Open 2025"]
[Site "Montevideo"]
[Date "2025.02.02"]
[Round "3.17"]
[White "Perez Selios, Luis"]
[Black "Manteiga, Franco"]
[Result "0-1"]
[Annotator "TA"]
[ECO "A45"]
[WhiteElo "1836"]
[BlackElo "2029"]
[PlyCount "72"]
[EventDate "2025.02.01"]
[EventType "swiss"]
[EventCountry "URU"]
[SourceTitle "playchess.com"]
[Source "ChessBase"]
[SourceQuality "1"]
[TimeControl "5400+30"]

{[%evp 9,72,0,9,-39,11,0,10,-13,-6,-21,-10,-69,-20,-39,-36,-101,-105,-114,-107,-110,0,-75,-51,-338,-345,-343,-322,-472,-412,-409,-335,-332,-341,-337,-322,-474,-470,-468,-390,-491,-479,-502,-424,-410,-393,-729,-726,-691,-598,-759,-751,-722,-713,-721,-705,-861,-854,-991,-989,-991,-987,-1076,-1108,-2324,-2167]} 1. d4 {[%emt 0:00:03]} Nf6 {[%emt 0:00:12]} 2. Bf4 {[%emt 0:00:17]} c5 {[%emt 0:01:38]} 3. e3 {[%emt 0:00:17]} Qb6 {[%emt 0:00:09]} 4. Na3 {[%emt 0:00:13]} d6 {[%emt 0:01:11]} 5. Nf3 {[%emt 0:01:16]} g6 {[%emt 0:00:32]} 6. Bd3 {[%emt 0:04:00] A45: Trompowsky Attack.} (6. Nc4 $11 {should be considered.} Qc6 7. Be2) 6... Bg7 {[%emt 0:02:41]} (6... Qxb2 $15 7. Nb5 Qb4+ 8. Qd2 Qxd2+ 9. Kxd2 Nd5) 7. Nc4 {[%emt 0:02:14]} Qc7 {[%emt 0:00:50]} 8. a4 $146 {[%emt 0:00:07][%cal Od4d5] The position is equal.} (8. O-O O-O 9. c3 b5 10. Ncd2 c4 11. Bc2 a5 12. e4 Nbd7 13. d5 Nh5 14. Be3 {0-1 Pallister,S (1880)-Cooper,R (1996) BCCA-NATCOR email 2016 [5]}) 8... O-O {[%emt 0:01:02]} 9. h3 {[%emt 0:02:31]} Be6 {[%emt 0:05:12]} 10. Ncd2 {[%emt 0:02:15]} ({White should play} 10. Na3 $1 $11) 10... Nd5 {[%emt 0:12:54]} (10... c4 $15 11. Be2 c3 12. bxc3 Nd5) 11. Bg3 $11 {[%emt 0:02:59]} Nb4 {[%emt 0:03:15]} 12. O-O {[%emt 0:00:40]} (12. Be4 $1 $15) 12... Nxd3 {[%emt 0:01:22]} 13. cxd3 {[%emt 0:00:14]} cxd4 {[%emt 0:02:10]} 14. Nxd4 {[%emt 0:00:08]} Bd7 {[%emt 0:00:59] A strong pair of Bishops.} (14... Bxd4 $17 15. exd4 Nc6) 15. b4 {[%emt 0:10:12]} (15. Nb5 $11 {remains equal.} Bxb5 16. axb5) 15... Qc3 {[%emt 0:19:45]} 16. Qb3 $2 {[%emt 0:12:34][%mdl 8192] This costs White the game.} (16. Ne4 $15 Qxb4 17. Rb1) 16... Bxd4 $19 {[%emt 0:02:12]} (16... Qxd2 17. Rfd1 Bxd4 18. Rxd2 $16) 17. exd4 {[%emt 0:01:12]} Qxd2 {[%emt 0:00:11]} 18. f4 {[%emt 0:00:34]} (18. b5 {was called for.}) 18... Qe3+ {[%emt 0:00:34]} 19. Bf2 {[%emt 0:00:12]} Qe6 {[%emt 0:03:23]} 20. d5 {[%emt 0:00:20]} Qf6 {[%emt 0:00:10][%cal Ob8a6]} 21. Rae1 {[%emt 0:00:27]} Na6 {[%emt 0:01:19][%cal Od7f5]} (21... Qxf4 22. Re4 Qh6 23. Be3 $15) 22. g4 {[%emt 0:00:59]} (22. Re4 $142) 22... Rfe8 {[%emt 0:00:56]} ({Less strong is} 22... Qxf4 23. Rxe7 Rad8 (23... Qxb4 24. Qxb4 Nxb4 25. Rxd7 $11) 24. b5 $19) 23. Re4 {[%emt 0:00:12]} e6 {[%emt 0:02:01]} 24. Bd4 {[%emt 0:00:41]} Qh4 {[%emt 0:00:42]} 25. Kg2 {[%emt 0:00:50] Repels Qg3+} exd5 {[%emt 0:00:44]} 26. Bf2 {[%emt 0:02:50]} Qd8 {[%emt 0:02:09]} 27. Qxd5 {[%emt 0:00:12]} (27. Rxe8+ Qxe8 28. Re1) 27... Bc6 {[%emt 0:00:30] Black is clearly winning.} 28. Qd4 {[%emt 0:00:19]} Nc7 {[%emt 0:07:06]} 29. Kg3 {[%emt 0:01:29]} Bxe4 {[%emt 0:00:47]} 30. dxe4 {[%emt 0:00:07]} Qe7 {[%emt 0:00:20]} 31. Re1 {[%emt 0:00:36]} Ne6 {[%emt 0:01:15]} 32. Qd3 {[%emt 0:01:55]} Rac8 {[%emt 0:00:45][%cal Oe6f4] Hoping for ...Nxf4!.} 33. h4 {[%emt 0:01:01] [#]} Nxf4 $1 {[%emt 0:00:49]} 34. Qf3 {[%emt 0:03:20]} (34. Qd2 Ne6) 34... Ne6 {[%emt 0:01:05][%cal Od6d5]} 35. Re2 {[%emt 0:01:07]} Rc4 {[%emt 0:00:38]} 36. Rb2 {[%emt 0:01:34] [#]} Ng5 $1 {[%emt 0:02:51] Weighted Error Value: White=0.79/Black=0.24 (precise)   Loses game:     	White=1     	---        Mistake:       	White=6     	Black=3      OK:         	White=6     	Black=8      Best:        	White=1     	Black=1} 0-1

[Event "8th Montevideo Open 2025"]
[Site "Montevideo"]
[Date "2025.02.02"]
[Round "3.18"]
[White "Guerrero, Alvaro"]
[Black "Delgado, Nazareno"]
[Result "1-0"]
[Annotator "NA RC"]
[ECO "E14"]
[WhiteElo "2028"]
[BlackElo "1819"]
[PlyCount "63"]
[EventDate "2025.02.01"]
[EventType "swiss"]
[EventCountry "URU"]
[SourceTitle "playchess.com"]
[Source "ChessBase"]
[SourceQuality "1"]
[TimeControl "5400+30"]

1. d4 {[%emt 0:15:39]} Nf6 {[%emt 0:00:10]} 2. c4 {[%emt 0:00:09]} c5 {[%emt 0:00:04]} 3. e3 {[%emt 0:00:32]} e6 {[%emt 0:01:58]} 4. Nf3 {[%emt 0:00:22]} b6 {[%emt 0:02:54]} 5. Nc3 {[%emt 0:00:15]} Bb7 {[%emt 0:00:33]} 6. d5 {[%emt 0:00:35]} d6 {[%emt 0:03:25]} 7. Be2 {[%emt 0:00:43]} Be7 {[%emt 0:00:24]} 8. O-O {[%emt 0:00:09]} O-O {[%emt 0:00:35]} 9. e4 {[%emt 0:00:46]} e5 {[%emt 0:08:12]} 10. Ne1 {[%emt 0:03:03]} Ne8 {[%emt 0:00:30]} 11. a4 {[%emt 0:00:30]} Bc8 {[%emt 0:03:21]} 12. Nd3 {[%emt 0:00:30]} f5 {[%emt 0:00:30]} 13. f4 {[%emt 0:00:30]} fxe4 {[%emt 0:00:30]} 14. Nxe4 {[%emt 0:00:06]} Bf5 {[%emt 0:05:53]} 15. Ng3 {[%emt 0:00:20]} Bxd3 {[%emt 0:03:17]} 16. Bxd3 {[%emt 0:02:04]} Nd7 {[%emt 0:03:03]} 17. Qe2 {[%emt 0:05:32]} Nc7 {[%emt 0:09:06]} 18. Nf5 {[%emt 0:01:54]} Rf6 {[%emt 0:55:05]} 19. Bd2 {[%emt 0:04:29]} Qf8 {[%emt 0:00:00]} 20. Qg4 {[%emt 0:02:59]} Rd8 {[%emt 0:00:00]} 21. Rae1 {[%emt 0:00:30]} Ne8 {[%emt 0:00:00]} 22. Rf3 {[%emt 0:00:30]} g6 {[%emt 0:00:00]} 23. Nxe7+ {[%emt 0:00:30]} Qxe7 {[%emt 0:00:00]} 24. f5 {[%emt 0:00:30]} e4 {[%emt 0:00:00]} 25. Rxe4 {[%emt 0:00:30]} Ne5 {[%emt 0:00:00]} 26. Rxe5 {[%emt 0:00:30]} dxe5 {[%emt 0:00:00]} 27. fxg6 {[%emt 0:00:30]} Qg7 {[%emt 0:00:00]} 28. gxh7+ {[%emt 0:00:30]} Kh8 {[%emt 0:00:00]} 29. Qxg7+ {[%emt 0:00:30]} Kxg7 {[%emt 0:00:00]} 30. Rg3+ {[%emt 0:00:30]} Kh8 {[%emt 0:06:00]} 31. Rf3 {[%emt 0:59:53]} Kg7 {[%emt 0:00:00]} 32. Rg3+ {[%emt 0:00:00]} 1-0